bitfinex-derivatives/quotes_SOLF0:USTF0_20250307
["timestamp","ask_amount","ask_price","bid_price","bid_amount"]
[1741309744913,27.87038714,137.79,137.76,199.12268665]
[1741309745209,4.0837,137.8,137.76,199.12268665]
[1741309745408,4.19323569,137.81,137.76,199.12268665]
[1741309745614,0.04773569,137.81,137.76,199.12268665]
[1741309746008,0.04773569,137.81,137.77,0.04903393]
[1741309747110,39.49750132,137.81,137.77,0.04903393]
[1741309748515,0.04773569,137.81,137.77,0.04903393]
[1741309753017,0.04773569,137.81,137.78,7.2576]
[1741309753319,0.04773569,137.81,137.77,0.04903393]
[1741309754007,0.04773569,137.81,137.79,7.2572]
[1741309754211,0.04773569,137.81,137.77,0.04903393]
[1741309754615,0.04773569,137.81,137.8,7.2567]
[1741309755123,7.2578,137.78,137.77,0.04903393]
[1741309755323,50.76,137.79,137.77,0.04903393]
[1741309755514,0.04773569,137.81,137.77,0.04903393]
[1741309756122,1.69773569,137.81,137.77,0.04903393]
[1741309757626,1.69773569,137.81,137.78,7.2577]
[1741309757821,1.69773569,137.81,137.77,0.04903393]
[1741309758014,1.69773569,137.81,137.79,7.2568]
[1741309758217,1.69773569,137.81,137.77,0.04903393]
[1741309758923,1.69773569,137.81,137.78,7.2577]
[1741309759121,1.69773569,137.81,137.77,0.04903393]
[1741309759518,1.69773569,137.81,137.79,7.2568]
[1741309759717,1.69773569,137.81,137.77,0.04903393]
[1741309760215,1.69773569,137.81,137.8,7.2567]
[1741309760615,39.44976563,137.89,137.77,0.04903393]
[1741309761026,39.44976563,137.89,137.74,51.43406563]
[1741309761326,7.2534,137.87,137.8,7.2563]
[1741309761526,39.44976563,137.89,137.74,51.43406563]
[1741309761727,0.05082906,137.85,137.82,0.0525231]
[1741309764029,0.05082906,137.85,137.74,11.9843]
[1741309764327,39.44976563,137.86,137.74,11.9843]
[1741309764529,7.255,137.84,137.77,7.2582]
[1741309764722,39.44976563,137.86,137.74,11.9843]
[1741309765031,0.04787107,137.81,137.79,0.05178025]
[1741309765420,50.7,137.85,137.79,0.05178025]
[1741309765620,0.0517611,137.81,137.79,0.05178025]
[1741309767827,7.2567,137.8,137.79,0.05178025]
[1741309768022,0.0517611,137.81,137.79,0.05178025]
[1741309769130,7.3079611,137.81,137.79,0.05178025]
[1741309769318,0.0517611,137.81,137.79,0.05178025]
[1741309772327,0.0517611,137.81,137.8,7.2567]
[1741309775135,1.26297452,137.91,137.79,0.05178025]
[1741309775333,7.2513,137.91,137.77,28.42884181]
[1741309775530,41.08608732,137.92,137.84,7.2542]
[1741309775729,148.61300258,137.93,137.84,7.2542]
[1741309775730,24.27224181,137.89,137.84,7.2542]
[1741309776038,24.27224181,137.89,137.77,4.1566]
[1741309776233,0.05123217,137.88,137.85,0.05197292]
[1741309776432,7.2525,137.88,137.77,4.1566]
[1741309776737,0.04586735,137.88,137.85,0.04659686]
[1741309776939,24.27224181,137.89,137.77,4.1566]
[1741309777141,0.05101634,137.88,137.85,0.04907799]
[1741309777333,24.27224181,137.89,137.77,4.1566]
[1741309777531,31.52574181,137.86,137.85,0.05391851]
[1741309777737,24.27224181,137.86,137.81,7.2558]
[1741309777938,24.27224181,137.86,137.77,4.1566]
[1741309778537,31.52614181,137.86,137.77,4.1566]
[1741309778939,0.04679268,137.83,137.8,0.0540184]
[1741309779137,0.04679268,137.83,137.8,7.3106184]
[1741309779839,0.04679268,137.83,137.8,0.0540184]
[1741309780537,0.04679268,137.83,137.8,7.3103184]
[1741309781538,0.04679268,137.83,137.8,0.0540184]
[1741309781929,0.04679268,137.83,137.82,7.2556]
[1741309782941,0.04679268,137.83,137.8,0.0540184]
[1741309783344,0.04679268,137.83,137.82,7.2556]
[1741309784235,24.27224181,137.89,137.8,0.0540184]
[1741309784441,11.19,137.9,137.8,0.0540184]
[1741309784642,11.19,137.9,137.79,47.44]
[1741309784842,11.19,137.9,137.81,19.35]
[1741309785235,11.19,137.9,137.82,50.58]
[1741309785434,11.19,137.9,137.84,0.04768125]
[1741309785435,0.05406517,137.87,137.84,0.04768125]
[1741309785842,0.05406517,137.87,137.86,7.2535]
[1741309786038,11.19,137.9,137.85,7.9115]
[1741309786337,11.19,137.9,137.87,7.2526]
[1741309786945,11.19,137.9,137.85,12.0232]
[1741309787247,18.49375774,137.9,137.87,0.04902986]
[1741309787437,11.24215774,137.9,137.87,0.04902986]
[1741309787833,18.49365774,137.9,137.87,0.04902986]
[1741309788043,11.24215774,137.9,137.87,0.04902986]
[1741309789543,18.49375774,137.9,137.87,0.04902986]
[1741309789751,11.24215774,137.9,137.87,0.04902986]
[1741309790047,7.2525,137.88,137.87,0.04902986]
[1741309790234,11.24215774,137.9,137.87,0.04902986]
[1741309790645,24.27224181,137.89,137.87,0.04902986]
[1741309790852,24.27224181,137.89,137.82,4.1192]
[1741309791749,7.2526,137.88,137.83,7.255]
[1741309792048,24.27224181,137.89,137.84,0.04785587]
[1741309792049,0.05402335,137.87,137.84,0.04785587]
[1741309793543,7.30752335,137.87,137.84,0.04785587]
[1741309794246,7.2541,137.85,137.84,0.04785587]
[1741309794434,7.2541,137.85,137.83,47.06]
[1741309794852,31.52594181,137.86,137.83,47.06]
[1741309795052,24.27224181,137.86,137.83,47.06]
[1741309795745,24.27224181,137.86,137.83,47.10897156]
[1741309795946,7.2541,137.85,137.83,47.10897156]
[1741309796346,24.27224181,137.86,137.83,47.10897156]
[1741309796950,31.52614181,137.86,137.83,47.10897156]
[1741309797251,24.27224181,137.86,137.83,47.10897156]
[1741309797448,7.2541,137.85,137.83,47.10897156]
[1741309797951,24.27224181,137.86,137.83,47.10897156]
[1741309798652,7.2545,137.85,137.83,47.10897156]
[1741309799049,24.27224181,137.86,137.83,47.10897156]
[1741309799249,0.05402335,137.87,137.83,47.10897156]
[1741309799446,11.19,137.9,137.83,47.10897156]
[1741309799751,18.4417,137.9,137.83,47.10897156]
[1741309799952,35.46224181,137.9,137.83,47.10897156]
[1741309800151,7.2541,137.85,137.83,47.10897156]
[1741309800349,24.27224181,137.87,137.83,47.10897156]
[1741309800749,0.04577313,137.86,137.83,47.10897156]
[1741309803048,24.27224181,137.9,137.83,54.36397156]
[1741309803352,24.27224181,137.9,137.83,47.10897156]
[1741309803750,41.46075492,137.93,137.83,47.10897156]
[1741309804046,3.531e-05,137.89,137.83,47.06]
[1741309804254,118.10658265,137.96,137.87,0.05474334]
[1741309804455,182.06069042,137.98,137.88,50.44]
[1741309804648,182.06069042,137.98,137.89,7.979]
[1741309804851,182.06069042,137.98,137.9,24.27224181]
[1741309804852,157.06229042,137.98,137.9,24.27224181]
[1741309805049,120.71639042,137.98,137.9,24.27224181]
[1741309805246,6.00819569,137.98,137.9,214.27224181]
[1741309805449,196.84430442,137.99,137.93,0.04767284]
[1741309805752,7.745e-05,137.97,137.94,50.42]
[1741309806249,7.745e-05,137.97,137.93,0.04767284]
[1741309806462,24.27224181,137.96,137.93,0.04767284]
[1741309806953,24.27224181,137.96,137.81,241.93224181]
[1741309806954,28.41301465,137.96,137.84,50.42]
[1741309807146,31.52254181,137.93,137.84,50.42]
[1741309807343,24.27224181,137.93,137.84,50.42]
[1741309807551,24.27224181,137.93,137.83,47.06]
[1741309807857,24.27224181,137.9,137.83,47.06]
[1741309808058,0.04767284,137.89,137.87,0.04907599]
[1741309808358,7.2525,137.88,137.87,0.04907599]
[1741309808559,0.04767284,137.89,137.86,40.14214177]
[1741309808745,24.27224181,137.87,137.86,15.17414177]
[1741309809055,24.27224181,137.87,137.83,167.53342857]
[1741309809249,24.27224181,137.84,137.83,167.53342857]
[1741309810254,0.05426998,137.85,137.83,167.53342857]
[1741309811052,24.27224181,137.93,137.83,171.15342857]
[1741309811254,7.2484,137.96,137.87,7.253]
[1741309811451,7.2484,137.96,137.88,7.9435]
[1741309811853,4.10017745,137.97,137.88,7.9435]
[1741309812055,24.27224181,137.95,137.88,7.9435]
[1741309812248,0.04247885,137.93,137.91,0.05046532]
[1741309812854,39.37943309,137.92,137.91,0.05046532]
[1741309814057,46.62983309,137.92,137.91,0.05046532]
[1741309814752,129.11886618,137.92,137.83,47.06]
[1741309814957,39.37943309,137.87,137.83,47.06]
[1741309815253,39.37943309,137.84,137.83,47.06]
[1741309815453,39.37943309,137.86,137.83,47.06]
[1741309815962,39.42800199,137.86,137.83,47.10842264]
[1741309816859,43.35850199,137.86,137.83,47.10842264]
[1741309817259,39.42800199,137.86,137.83,47.10842264]
[1741309817463,0.0485689,137.86,137.83,47.10842264]
[1741309818463,39.42800199,137.86,137.83,47.10842264]
[1741309818668,46.68210199,137.86,137.83,47.10842264]
[1741309818965,39.42800199,137.86,137.83,47.10842264]
[1741309823565,0.0485689,137.86,137.83,47.10842264]
[1741309823765,0.0485689,137.86,137.83,54.36342264]
[1741309824270,0.0485689,137.86,137.83,47.10842264]
[1741309824470,50.3,137.92,137.84,8.1274]
[1741309824767,39.37943309,137.93,137.84,8.1274]
[1741309824965,39.37943309,137.96,137.84,8.1274]
[1741309825166,17.08433822,137.97,137.84,8.1274]
[1741309825667,0.04437527,137.92,137.89,0.05574056]
[1741309825868,7.745e-05,137.97,137.94,7.2493]
[1741309826069,7.745e-05,137.97,137.87,240.28]
[1741309826271,7.745e-05,137.97,137.88,1.32398516]
[1741309826470,7.745e-05,137.97,137.89,39.37943309]
[1741309826862,7.745e-05,137.97,137.96,7.2483]
[1741309827263,7.745e-05,137.97,137.93,50.28]
[1741309827461,7.745e-05,137.97,137.96,7.2483]
[1741309827864,7.745e-05,137.97,137.96,10.8683]
[1741309829166,39.37943309,138.09,137.96,3.62]
[1741309829368,39.37943309,138.09,137.95,0.05226141]
[1741309829569,39.37943309,138.09,137.95,5.11173388]
[1741309829774,39.37943309,138.09,138.01,0.05461386]
[1741309830075,39.37943309,138.09,138.01,3.84521386]
[1741309830265,39.37943309,138.09,138.01,11.09061386]
[1741309830575,39.37943309,138.09,138.01,3.84521386]
[1741309830975,39.37943309,138.12,138.02,3.946]
[1741309831373,39.37943309,138.12,138.03,3.785]
[1741309831571,39.37943309,138.12,138.06,0.05490255]
[1741309833077,7.2409,138.11,138.06,0.05490255]
[1741309833270,39.37943309,138.12,138.06,0.05490255]
[1741309833470,39.37943309,138.09,138.06,0.05490255]
[1741309834379,46.62093309,138.09,138.06,0.05490255]
[1741309835774,39.37943309,138.09,138.06,0.05490255]
[1741309835973,7.2425,138.07,138.06,0.05490255]
[1741309836176,3.9824,138.08,137.95,3.9299]
[1741309836382,39.37943309,138.04,137.95,3.9299]
[1741309837179,39.37943309,138.01,137.95,3.9299]
[1741309837371,39.42698059,138.01,137.98,0.05274583]
[1741309837772,7.2467,137.99,137.98,0.05274583]
[1741309839280,7.2499,137.93,137.9,3.9299]
[1741309839973,39.37943309,137.96,137.86,7.2535]
[1741309840172,39.37943309,137.96,137.86,4.0146]
[1741309840372,0.05505958,137.92,137.9,0.05378978]
[1741309841279,39.37943309,137.99,137.9,0.05378978]
[1741309841585,46.62653309,137.99,137.89,50.12]
[1741309841776,46.62653309,137.99,137.91,7.2508]
[1741309841970,39.37943309,137.99,137.91,7.2508]
[1741309842176,39.37943309,137.99,137.89,50.12]
[1741309842378,0.0525888,137.96,137.94,0.04571757]
[1741309844985,7.3008888,137.96,137.94,0.04571757]
[1741309845189,0.0525888,137.96,137.94,0.04571757]
[1741309845690,7.2488,137.95,137.94,0.04571757]
[1741309846484,7.2501,137.93,137.88,50.12]
[1741309846986,7.2501,137.93,137.87,7.253]
[1741309847283,39.37943309,137.96,137.86,4.0146]
[1741309847485,7.2515,137.9,137.85,8.0235]
[1741309847681,0.05170146,137.92,137.85,8.0235]
[1741309847890,39.37943309,137.93,137.86,0.05033859]
[1741309848078,0.05326597,137.9,137.86,0.05033859]
[1741309849084,7.30466597,137.9,137.86,0.05033859]
[1741309849382,0.05326597,137.9,137.86,0.05033859]
[1741309849783,7.30476597,137.9,137.86,0.05033859]
[1741309850887,7.2521,137.89,137.86,0.05033859]
[1741309851190,39.43269906,137.9,137.86,0.05033859]
[1741309851375,0.05326597,137.9,137.86,0.05033859]
[1741309853476,7.30486597,137.9,137.86,0.05033859]
[1741309853986,0.05326597,137.9,137.86,0.05033859]
[1741309855388,0.05326597,137.9,137.87,7.2529]
[1741309856089,0.05326597,137.9,137.88,7.2524]
[1741309856483,0.05326597,137.9,137.86,0.05033859]
[1741309857187,0.00559313,137.9,137.89,7.252]
[1741309857398,14.9558,137.96,137.87,57.9684]
[1741309857983,7.7075,137.96,137.87,57.9684]
[1741309858286,24.24511301,137.98,137.87,57.9684]
[1741309858483,0.0450404,137.93,137.9,0.0542731]
[1741309858793,24.24511301,137.98,137.9,0.0542731]
[1741309859094,7.2463,138.0,137.9,0.0542731]
[1741309859284,7.2463,138.0,137.88,1.32398099]
[1741309859693,7.2463,138.0,137.89,3.9087]
[1741309859991,32.20781301,138.01,137.94,7.249]
[1741309860190,32.20781301,138.01,137.89,3.9087]
[1741309860491,32.20781301,138.01,137.96,0.05123159]
[1741309860690,7.2477,137.98,137.96,0.05123159]
[1741309861083,32.20781301,138.01,137.96,0.05123159]
[1741309861286,7.2477,137.98,137.96,0.05123159]
[1741309862191,7.2478,137.97,137.96,0.05123159]
[1741309862891,24.24511301,137.98,137.96,0.05123159]
[1741309863093,7.2463,138.0,137.96,0.05123159]
[1741309863488,32.20781301,138.01,137.96,0.05123159]
[1741309863990,7.2472,137.99,137.96,0.05123159]
[1741309864185,32.20781301,138.01,137.96,0.05123159]
[1741309864397,24.24511301,138.04,137.96,0.05123159]
[1741309865188,7.245,138.03,137.96,0.05123159]
[1741309865496,24.24511301,138.04,137.96,0.05123159]
[1741309865788,24.24511301,138.04,137.99,7.2462]
[1741309865993,8.0859,138.06,137.96,0.05123159]
[1741309866194,7.2419,138.09,138.03,7.2442]
[1741309866588,28.37861301,138.1,138.05,0.04894317]
[1741309866589,24.24511301,138.07,138.05,0.04894317]
[1741309866889,24.24511301,138.07,137.96,3.9614]
[1741309867694,24.24511301,138.07,137.94,239.94]
[1741309867695,24.24511301,138.07,137.94,49.92]
[1741309867998,0.0461992,138.03,138.0,0.05270547]
[1741309868592,28.37861301,138.1,138.0,0.05270547]
[1741309868790,24.24511301,138.1,138.0,49.9]
[1741309868998,7.7056,138.12,138.0,49.9]
[1741309869987,7.241,138.1,138.05,0.04666193]
[1741309870192,7.7056,138.12,138.05,0.04666193]
[1741309870602,7.2414,138.1,138.05,0.04666193]
[1741309870799,7.7056,138.12,138.05,0.04666193]
[1741309871200,467.83308109,138.21,138.07,7.2424]
[1741309871400,24.24511301,138.18,138.06,49.88]
[1741309871703,402.11484733,138.11,138.1,7.2409]
[1741309871895,389.62764733,138.11,138.1,7.2409]
[1741309872097,366.71904733,138.11,138.1,7.2409]
[1741309872301,295.91214733,138.11,138.1,10.8609]
[1741309872695,494.23792957,138.12,138.1,3.62]
[1741309872900,494.23792957,138.12,138.11,31.48551301]
[1741309873198,750.47457323,138.12,138.11,31.48551301]
[1741309873401,691.58644559,138.12,138.11,35.10551301]
[1741309873605,377.28499501,138.17,138.16,7.2378]
[1741309873895,256.34999667,138.17,138.16,81.32291301]
[1741309874102,189.48149501,138.17,138.16,109.18802602]
[1741309874300,151.17729501,138.17,138.16,109.18802602]
[1741309874490,151.17729501,138.17,138.16,138.99069266]
[1741309874895,89.17729501,138.17,138.16,138.99069266]
[1741309875295,12.1715,138.35,138.16,610.75112565]
[1741309875496,14.48,138.35,138.26,39.14644633]
[1741309875698,46.86824633,138.42,138.27,49.8]
[1741309875896,14.48,138.32,138.29,0.04911453]
[1741309876094,108.6,138.31,138.23,49.8]
[1741309876400,14.48,138.28,138.23,49.8]
[1741309876594,14.48,138.28,138.26,0.04752122]
[1741309876796,39.14644633,138.33,138.3,115.75518154]
[1741309876991,82.58646828,138.33,138.3,115.75518154]
[1741309877197,123.08,138.31,138.23,49.8]
[1741309877397,14.48,138.26,138.19,49.76]
[1741309877599,57.92002195,138.33,138.26,0.05561154]
[1741309877904,0.68450009,138.49,138.27,49.76]
[1741309877905,217.14,138.43,138.27,49.76]
[1741309878099,14.48,138.36,138.28,0.04915011]
[1741309878296,14.48,138.36,138.28,3.7705]
[1741309878496,14.48,138.36,138.31,0.04583892]
[1741309878699,39.14644633,138.42,138.31,0.04583892]
[1741309878900,82.58646828,138.42,138.31,0.04583892]
[1741309879102,82.58646828,138.42,138.28,7.8165]
[1741309879103,7.2257,138.4,138.28,7.8165]
[1741309879299,82.58646828,138.42,138.35,0.05496966]
[1741309879699,245.25331578,138.43,138.35,0.05496966]
[1741309880402,7.2258,138.39,138.35,0.05496966]
[1741309880610,39.14644633,138.4,138.35,0.05496966]
[1741309880800,39.14644633,138.41,138.36,14.67701658]
[1741309881404,94.01429204,138.43,138.37,0.05290187]
[1741309881803,39.14644633,138.48,138.37,4.18540187]
[1741309882003,217.04,138.5,138.37,4.18540187]
[1741309882303,39.14644633,138.45,138.38,36.36]
[1741309882508,7.2237,138.43,138.42,0.05478258]
[1741309882709,4.0602,138.44,138.38,36.36]
[1741309882898,39.14644633,138.42,138.38,36.36]
[1741309883212,4.0602,138.44,138.38,51.03701658]
[1741309883807,39.14644633,138.45,138.38,51.03701658]
[1741309884007,0.04728642,138.42,138.4,0.05236721]
[1741309884402,194.0,138.86,138.4,0.05236721]
[1741309884403,216.96,138.63,138.4,42.81881354]
[1741309884603,39.14644633,138.57,138.41,7.9525]
[1741309885312,39.14644633,138.57,138.41,26.7125]
[1741309885512,39.14644633,138.54,138.41,26.7125]
[1741309885811,7.2205,138.49,138.48,0.04589952]
[1741309886197,39.14644633,138.51,138.49,179.46965915]
[1741309886403,7.2203,138.5,138.49,135.48445915]
[1741309886608,39.14644633,138.5,138.49,102.79635915]
[1741309886800,39.14644633,138.5,138.49,100.51337273]
[1741309887214,255.98644633,138.53,138.49,100.51337273]
[1741309887511,0.05212061,138.51,138.49,100.51337273]
[1741309887912,0.05212061,138.51,138.49,115.19038931]
[1741309888416,39.14644633,138.56,138.49,115.19038931]
[1741309888809,7.22,138.5,138.49,115.19038931]
[1741309889014,46.36644633,138.5,138.49,90.14448931]
[1741309889312,49.98644633,138.5,138.49,8.931e-05]
[1741309889714,7.2205,138.49,138.48,0.05494161]
[1741309889915,46.36694633,138.49,138.48,0.05494161]
[1741309890110,39.14644633,138.49,138.46,227.30282394]
[1741309890309,39.14644633,138.49,138.43,289.00778873]
[1741309890816,7.2227,138.45,138.43,289.00778873]
[1741309891117,39.14644633,138.49,138.43,289.00778873]
[1741309891418,39.14644633,138.49,138.43,289.05774131]
[1741309891419,0.04652915,138.45,138.43,289.05774131]
[1741309892917,7.2232,138.44,138.43,289.05774131]
[1741309893114,7.2232,138.44,138.43,0.04995258]
[1741309893315,0.04652915,138.45,138.43,0.04995258]
[1741309893518,39.14644633,138.55,138.43,49.58995258]
[1741309893920,39.14644633,138.52,138.43,49.54]
[1741309894120,39.14644633,138.52,138.42,3.9839]
[1741309894322,39.14644633,138.49,138.37,4.0694]
[1741309894521,39.14644633,138.49,138.39,7.2253]
[1741309894818,39.14644633,138.49,138.44,0.04939487]
[1741309895213,194.0,138.52,138.44,0.04939487]
[1741309895517,233.14644633,138.52,138.44,0.04939487]
[1741309896322,7.2196,138.51,138.44,0.04939487]
[1741309897520,216.76,138.53,138.44,0.04939487]
[1741309897818,216.76,138.53,138.44,7.2231]
[1741309898026,216.76,138.53,138.47,0.04792068]
[1741309898524,7.2195,138.51,138.47,0.04792068]
[1741309898725,216.76,138.53,138.47,0.04792068]
[1741309899020,223.9785,138.53,138.47,0.04792068]
[1741309900130,216.76,138.53,138.47,0.04792068]
[1741309901330,0.2588,138.57,138.47,0.04792068]
[1741309901635,0.2588,138.57,138.45,7.8374]
[1741309901929,0.2588,138.57,138.51,0.0552215]
[1741309902528,7.4753,138.57,138.51,0.0552215]
[1741309903229,7.217,138.56,138.51,0.0552215]
[1741309903533,0.2588,138.57,138.51,0.0552215]
[1741309903735,7.4753,138.57,138.51,0.0552215]
[1741309904323,0.2588,138.57,138.51,0.0552215]
[1741309904525,0.2588,138.57,138.53,7.2185]
[1741309906531,0.2588,138.57,138.51,0.0552215]
[1741309906830,39.14644633,138.56,138.51,0.0552215]
[1741309907233,108.54505839,138.53,138.51,0.0552215]
[1741309907433,108.54505839,138.55,138.51,0.0552215]
[1741309907623,108.54505839,138.52,138.51,0.0552215]
[1741309908121,115.76405839,138.52,138.51,0.0552215]
[1741309908324,115.76405839,138.52,138.51,0.0106215]
[1741309908629,112.14505839,138.52,138.41,4.1188]
[1741309908935,49.4,138.55,138.41,4.1188]
[1741309908936,108.54505839,138.46,138.41,4.1188]
[1741309909123,108.54505839,138.45,138.41,11.3435]
[1741309909329,108.54505839,138.43,138.36,57.4237]
[1741309909535,108.54505839,138.43,138.36,8.0237]
[1741309909732,7.2196,138.51,138.36,8.0237]
[1741309910030,88.54644633,138.54,138.39,39.14644633]
[1741309910330,108.54505839,138.5,138.39,39.14644633]
[1741309910534,108.54505839,138.49,138.39,39.14644633]
[1741309910935,108.54505839,138.49,138.45,7.2222]
[1741309911138,108.54505839,138.49,138.43,0.05177408]
[1741309911338,108.54505839,138.48,138.43,0.05177408]
[1741309911638,108.54505839,138.46,138.43,7.2232]
[1741309911839,108.54505839,138.46,138.44,0.0475777]
[1741309912132,88.54644633,138.54,138.44,0.0475777]
[1741309912332,108.54505839,138.46,138.41,49.38]
[1741309912537,88.54644633,138.54,138.38,36.36]
[1741309912538,108.54505839,138.44,138.38,36.36]
[1741309912731,108.54505839,138.45,138.41,0.04967301]
[1741309913242,39.14644633,138.49,138.41,18.10967301]
[1741309913243,108.54505839,138.42,138.41,18.10967301]
[1741309913739,216.64,138.47,138.41,18.10967301]
[1741309914128,108.54505839,138.45,138.41,18.10967301]
[1741309914444,143.90615515,138.56,138.42,49.36]
[1741309914632,108.54505839,138.53,138.42,92.59534633]
[1741309914832,108.54505839,138.53,138.45,39.14644633]
[1741309915039,143.90615515,138.56,138.46,0.05499159]
[1741309915233,108.54505839,138.55,138.46,0.05499159]
[1741309915433,108.54505839,138.55,138.45,39.14644633]
[1741309915731,108.54505839,138.52,138.49,0.04981879]
[1741309915941,108.54505839,138.51,138.49,0.04981879]
[1741309916443,115.41858277,138.5,138.49,0.04981879]
[1741309916637,104.28348277,138.5,138.49,0.04981879]
[1741309917343,104.28348277,138.5,138.49,7.27031879]
[1741309918745,0.2588,138.57,138.49,7.27031879]
[1741309918944,108.54505839,138.53,138.5,7.2196]
[1741309919132,108.54505839,138.53,138.45,48.05]
[1741309919339,108.54505839,138.52,138.5,0.05045487]
[1741309919646,108.54505839,138.53,138.5,7.27045487]
[1741309919937,108.54505839,138.52,138.5,0.05045487]
[1741309920348,7.2179,138.55,138.5,0.05045487]
[1741309920541,108.54505839,138.52,138.5,0.05045487]
[1741309921040,108.54505839,138.51,138.5,0.05045487]
[1741309922144,112.14505839,138.51,138.45,48.05]
[1741309922344,108.54505839,138.46,138.45,48.05]
[1741309923247,119.38715839,138.46,138.45,48.05]
[1741309923443,115.76715839,138.46,138.45,48.05]
[1741309923643,115.76715839,138.46,138.44,0.05442427]
[1741309923644,71.33715839,138.46,138.44,0.05442427]
[1741309923847,60.49505839,138.45,138.44,0.05442427]
[1741309925847,3.62,138.45,138.32,7.7034]
[1741309926047,106.81128045,138.42,138.34,7.2282]
[1741309926240,60.44063412,138.42,138.32,7.7034]
[1741309926442,60.44063412,138.42,138.33,39.14644633]
[1741309926749,60.44063412,138.42,138.32,7.7034]
[1741309927245,67.66483412,138.42,138.4,0.05476054]
[1741309927642,60.44063412,138.42,138.4,0.05476054]
[1741309928147,0.05198989,138.43,138.4,0.05476054]
[1741309928447,60.44063412,138.42,138.4,0.05476054]
[1741309928941,0.05198989,138.43,138.4,0.05476054]
[1741309929444,0.05198989,138.43,138.42,7.2242]
[1741309929640,410.68,138.51,138.41,30.3266]
[1741309929841,216.68,138.51,138.41,30.3266]
[1741309930044,60.44063412,138.49,138.41,79.6066]
[1741309930443,216.68,138.51,138.41,79.6066]
[1741309930653,60.44063412,138.5,138.41,79.6066]
[1741309930846,1.741e-05,138.47,138.45,0.05308659]
[1741309931041,119.75464467,138.54,138.41,79.6066]
[1741309931352,60.44063412,138.53,138.41,79.6066]
[1741309931548,60.44063412,138.53,138.43,39.14644633]
[1741309931853,119.75464467,138.54,138.43,39.14644633]
[1741309932046,60.44063412,138.54,138.47,0.05327099]
[1741309932243,60.44063412,138.54,138.47,49.31327099]
[1741309932438,60.44063412,138.54,138.48,4.0043]
[1741309932949,60.44063412,138.54,138.49,7.9509]
[1741309933250,60.44063412,138.54,138.49,15.1709]
[1741309933444,60.44063412,138.53,138.5,0.05032276]
[1741309933642,60.44063412,138.52,138.5,0.05032276]
[1741309933846,60.44063412,138.51,138.5,0.05032276]
[1741309934051,60.44063412,138.51,138.43,8.1197]
[1741309934245,60.44063412,138.44,138.41,3.9798]
[1741309934444,60.44063412,138.43,138.38,8.1197]
[1741309934645,60.44063412,138.44,138.4,7.2252]
[1741309934854,60.44063412,138.43,138.38,8.1197]
[1741309935260,88.38644633,138.49,138.4,7.2251]
[1741309935261,0.04855582,138.42,138.4,7.2251]
[1741309935551,60.44063412,138.43,138.38,8.1197]
[1741309935753,0.04780856,138.42,138.4,7.27908072]
[1741309935947,39.14644633,138.52,138.4,0.05398072]
[1741309936254,60.44063412,138.48,138.4,7.2248]
[1741309936442,60.44063412,138.45,138.41,18.06]
[1741309936751,60.44063412,138.42,138.41,18.06]
[1741309937141,0.02061613,138.43,138.41,18.06]
[1741309937348,0.02061613,138.43,138.42,7.2242]
[1741309937646,40.40369447,138.56,138.41,18.11257808]
[1741309937647,0.02061613,138.44,138.41,18.11257808]
[1741309938146,39.14644633,138.52,138.41,18.11054874]
[1741309938352,0.02061613,138.44,138.41,18.11054874]
[1741309938654,60.46125025,138.44,138.41,18.10605484]
[1741309938860,0.02061613,138.44,138.41,18.10605484]
[1741309939948,0.02061613,138.44,138.43,7.2237]
[1741309940152,60.44063412,138.42,138.28,17.58276462]
[1741309940350,0.02061613,138.44,138.28,17.58276462]
[1741309940351,39.14644633,138.41,138.28,17.58276462]
[1741309940552,60.44063412,138.31,138.28,17.58276462]
[1741309940747,60.44063412,138.29,138.28,17.58276462]
[1741309940947,99.58708045,138.29,138.26,76.87500152]
[1741309941146,60.44063412,138.27,138.26,76.87500152]
[1741309941560,60.44063412,138.27,138.26,76.924993]
[1741309942149,0.05385727,138.29,138.26,76.924993]
[1741309943751,0.05385727,138.29,138.26,0.04999148]
[1741309943752,60.44063412,138.27,138.26,0.04999148]
[1741309943949,0.05385727,138.29,138.26,0.04999148]
[1741309944660,60.49449139,138.29,138.26,0.04999148]
[1741309945162,0.05385727,138.29,138.26,0.04999148]
[1741309945852,60.49449139,138.29,138.26,0.04999148]
[1741309946052,60.44063412,138.27,138.26,0.04999148]
[1741309947158,0.05385727,138.29,138.26,0.04999148]
[1741309947361,60.49449139,138.29,138.26,0.04999148]
[1741309947863,60.44063412,138.28,138.26,0.04999148]
[1741309948264,60.44063412,138.27,138.26,0.04999148]